Cogmind - Beta 13 @@@ ROGUE MODE // 2024.03.15 @ 18:46:21 Player: 3.14 Result: Destroyed by VI-YXR(R) with Subdweller Beam Cannon Performance ------------- Evolutions (0) 0 Regions Visited (2) 400 Robots Destroyed (10) 50 Value Destroyed (372) 372 Prototype IDs (0) 0 Alien Tech Used (0) 0 Bonus (0) 0 TOTAL SCORE: 822 Bonus ------- None Cogmind --------- Core Integrity 0/250 Matter 300/300 Energy 95/100 System Corruption 0% Temperature Cool (9) Movement Treading (160) Location -10/Subcaves Parts ------- > --- POWER (1) -------- (None) > --- PROPULSION (2) --- Light Treads Aluminum Leg > --- UTILITY (2) ------ Makeshift Light Armor Plating Makeshift Thermal Plating > --- WEAPON (2) ------- Makeshift Spear Makeshift Spear > --- INVENTORY (5) ---- Flightbrick Subdweller Shrapnel Launcher Peak State ------------ > --- POWER ------------ (None) > --- PROPULSION ------- Light Treads Aluminum Leg > --- UTILITY ---------- Makeshift Light Armor Plating Makeshift Thermal Plating > --- WEAPON ----------- Makeshift Spear Makeshift Spear > --- INVENTORY -------- Flightbrick Subdweller Shrapnel Launcher [Rating: 21] Favorites ----------- Power Ion Engine Engine Ion Engine Propulsion Light Treads Treads Light Treads Leg Aluminum Leg Utility Small Storage Unit Device Seismic Detector Storage Small Storage Unit Protection Makeshift Thermal Plating Weapon Assault Rifle Energy Gun Subdweller Laser Energy Cannon Subdweller Beam Cannon Ballistic Gun Assault Rifle Piercing Weapon Makeshift Spear Build | -11 -10 -10 ------- Run | Yrd Mat Sub Slots Evolved . | . . . Power . | . . . Propulsion . | . . . Utility . | . . . Weapon . | . . . Parts Attached 18 | . 3 15 Power 2 | . . 2 Engine 2 | . . 2 Core . | . . . Reactor . | . . . Propulsion 5 | . 2 3 Treads 4 | . 2 2 Leg 1 | . . 1 Wheel . | . . . Hover . | . . . Flight . | . . . Utility 3 | . 1 2 Device 1 | . 1 . Storage . | . . . Processor . | . . . Hackware . | . . . Protection 2 | . . 2 Artifact . | . . . Weapon 8 | . . 8 Energy Gun 4 | . . 4 Energy Cannon 1 | . . 1 Ballistic Gun 1 | . . 1 Ballistic Cannon . | . . . Launcher . | . . . Special Weapon . | . . . Impact Weapon . | . . . Slashing Weapon . | . . . Piercing Weapon 2 | . . 2 Special Melee Weapon . | . . . Unidentified Prototypes . | . . . Parts Lost 2 | . . 2 Power . | . . . Propulsion 1 | . . 1 Utility . | . . . Weapon 1 | . . 1 Highest Loss Streak 1 | . . 1 To Critical Strikes . | . . . Average Slot Usage (%) 92 | . 85 93 Engine 12 | . 14 12 Treads 26 | . 28 26 Device 10 | . . 12 Storage 12 | . 14 12 Energy Gun 8 | . . 10 Energy Cannon 1 | . . 2 Ballistic Gun 14 | . 28 12 Piercing Weapon 1 | . . 1 Naked Turns 28 | . . 28 Heaviest Build 23 | 12 13 23 Greatest Support 40 | 20 40 40 Greatest Overweight (x) . | . . . Average Overweight (x) . | . . . Largest Inventory Capacity 8 | . 8 8 Average Capacity 7 | . 8 7 Most Carried 8 | . 8 8 Average Carried 7 | . 7 7 Final Capacity 8 | 8 8 5 Final Carried 8 | 6 8 5 Class Distribution -------------------- 100% | Mutant Dominant Class ---------------- Mutant | -10/Materials Mutant | -10/Subcaves Resources | -11 -10 -10 ----------- Run | Yrd Mat Sub Matter Collected 475 | 200 15 260 Remotely . | . . . Salvage Created 558 | . 19 539 Parts 32 | . 3 29 Haulers Intercepted . | . . . Recyclers Shooed . | . . . Parts Field Recycled . | . . . Retrieved Matter . | . . . Parts Self-Destructed 1 | . . 1 Prevented . | . . . Kills | -11 -10 -10 ------- Run | Yrd Mat Sub Combat Hostiles Destroyed 9 | . . 9 Melee 1 | . . 1 Guns 5 | . . 5 Cannons 2 | . . 2 Classes Destroyed 4 | . 1 3 Tunneler 1 | . 1 . Sentry 1 | . . 1 Cobbler 2 | . . 2 Subdweller 8 | . . 8 Best Kill Streak 3 | . 1 3 Combat Bots Only 3 | . . 3 Max Kills in Single Turn 1 | . 1 1 Gunslinging . | . . . Exploded . | . . . Melee 1 | . . 1 Uniques/NPCs Destroyed . | . . . Combat | -11 -10 -10 -------- Run | Yrd Mat Sub Hostile Shots Fired 59 | . . 59 Missed 14 | . . 14 Damage Taken 1015 | . . 1015 Core 270 | . . 270 Absorbed by Shields . | . . . Ignored by Resistances 9 | . . 9 Core Remaining (%) 100 | 100 . . Volleys Fired 47 | . 2 45 Largest 2 | . 2 2 Hottest 140 | . 40 140 Shots Fired 87 | . 4 83 Gun 66 | . 4 62 Cannon 21 | . . 21 Launcher . | . . . Special . | . . . Kinetic 39 | . 4 35 Thermal 48 | . . 48 Explosive . | . . . Electromagnetic . | . . . Robot Hit Streak 15 | . 3 15 Robot Miss Streak 1 | . . 1 Penetration Max . | . . . Secondary Targets . | . . . Shots Hit Robots 62 | . 3 59 Core Hits 25 | . 3 22 Critical Kills 2 | . . 2 Critical Parts Destroyed . | . . . Critical Strikes 3 | . . 3 Meltdown 1 | . . 1 Destroy 2 | . . 2 Melee Attacks 10 | . . 10 Impact . | . . . Slashing . | . . . Piercing 10 | . . 10 Sneak Attacks . | . . . Combat Hostiles . | . . . Follow-up Attacks 1 | . . 1 Damage Inflicted 1169 | . 30 1139 Guns 638 | . 23 615 Cannons 338 | . . 338 Explosions . | . . . Melee 186 | . . 186 Ramming 7 | . 7 . Kinetic 317 | . 23 294 Thermal 659 | . . 659 Explosive . | . . . Electromagnetic . | . . . Impact . | . . . Slashing . | . . . Piercing 186 | . . 186 Highest Corruption . | . . . Average Corruption . | . . . Corruption Purged . | . . . Corruption Blocked . | . . . Overload Shots . | . . . Overflow Damage . | . . . Projectiles . | . . . Explosions . | . . . Melee . | . . . Knockbacks . | . . . Impact . | . . . Kinetic . | . . . Secondary . | . . . Self-Inflicted Damage . | . . . Shots . | . . . Rammed 2 | . 2 . Targets Rammed 2 | . 2 . Kicked . | . . . Crushed . | . . . Highest Temperature 42 | . . 42 Average Temperature 15 | . . 15 Received Heat Transfer 156 | . . 156 Siege Activations . | . . . Robots Corrupted . | . . . Combat Hostiles . | . . . Parts Fried . | . . . Impact Corruptions . | . . . Robots Melted 1 | . . 1 Combat Hostiles 1 | . . 1 Parts Melted 2 | . . 2 Heat Transferred 844 | . . 844 Parts Sabotaged . | . . . Parts Stolen . | . . . Parts Stripped . | . . . Power Chain Reactions . | . . . Alert | -11 -10 -10 ------- Run | Yrd Mat Sub Peak Influence 20 | . 20 . Initial . | . . . Average 12 | . 12 . Maximum Alert Level . | . . . Low Security (%) 100 | . 100 . Level 1 . | . . . Level 2 . | . . . Level 3 . | . . . Level 4 . | . . . Level 5 . | . . . High Security . | . . . Max Security . | . . . Squads Dispatched 2 | . 2 . Investigation 1 | . 1 . Extermination . | . . . Reinforcement 1 | . 1 . Assault . | . . . Garrison . | . . . Intercept . | . . . Searches Triggered . | . . . Construction Impeded . | . . . Haulers Reinforced . | . . . Active Scanning Responses . | . . . Cargo Convoy Interrupts . | . . . Stealth | -11 -10 -10 --------- Run | Yrd Mat Sub Distress Signals . | . . . Communications Jammed . | . . . Distress Signals . | . . . Times Spotted 17 | . 4 13 Peak Tracking Total 3 | . 2 3 Tactical Retreats 1 | . . 1 Traps | -11 -10 -10 ------- Run | Yrd Mat Sub Traps Triggered . | . . . Indirectly . | . . . Trap Hack Attempts . | . . . Triggered . | . . . Disarmed . | . . . Reprogrammed . | . . . Reused . | . . . Traps Extracted . | . . . Installed . | . . . Triggered . | . . . Machines | -11 -10 -10 ---------- Run | Yrd Mat Sub Machines Disabled . | . . . Max in Single Turn . | . . . Machines Repaired . | . . . Machines Dismantled . | . . . Machines Sabotaged . | . . . Overloaded Fab Kills . | . . . Hacking | -11 -10 -10 --------- Run | Yrd Mat Sub Machines Accessed 1 | . 1 . Terminals 1 | . 1 . Fabricators . | . . . Repair Stations . | . . . Recycling Units . | . . . Scanalyzers . | . . . Garrison Access . | . . . Total Hacks 2 | . 2 . Successful . | . . . Failed 2 | . 2 . Catastrophic 1 | . 1 . Database Lockouts . | . . . Manual . | . . . Terminals 2 | . 2 . Fabricators . | . . . Repair Stations . | . . . Recycling Units . | . . . Scanalyzers . | . . . Garrison Access . | . . . Terminal Hacks . | . . . Fabricator Hacks . | . . . Repair Station Hacks . | . . . Recycling Unit Hacks . | . . . Scanalyzer . | . . . Garrison Access Hacks . | . . . Unauthorized Hacks . | . . . Terminals . | . . . Fabricators . | . . . Repair Stations . | . . . Recycling Units . | . . . Scanalyzers . | . . . Garrison Access . | . . . Data Cores Recovered . | . . . Used . | . . . Hacking Detections 1 | . 1 . Full Trace Events 1 | . 1 . Feedback Events . | . . . Feedback Blocked . | . . . Robot Schematics Acquired . | . . . Robots Built . | . . . Authchips . | . . . Time . | . . . Total Robot Build Rating . | . . . Part Schematics Acquired . | . . . Parts Built . | . . . Authchips . | . . . Time . | . . . Total Part Build Rating . | . . . Parts Repaired . | . . . Time . | . . . Parts Recycled . | . . . Recycled Matter . | . . . Retrieved Matter . | . . . Retrieved Components . | . . . Parts Scanalyzed . | . . . Part Schematics Acquired . | . . . Parts Damaged . | . . . Bothacking | -11 -10 -10 ------------ Run | Yrd Mat Sub Used RIF Installer . | . . . Robots Hacked . | . . . Non-combat . | . . . Combat . | . . . Robot Hacks Applied . | . . . Relay Couplers Released . | . . . Fabnet Peak Effective % . | . . . Robots Rewired . | . . . Allies Hacked . | . . . Hacks Repelled . | . . . Allies | -11 -10 -10 -------- Run | Yrd Mat Sub Total Allies . | . . . Largest Group . | . . . Highest-Rated Group . | . . . Highest-Rated Ally . | . . . Total Orders . | . . . Ally Attacks . | . . . Total Damage . | . . . Kills . | . . . Allies Corrupted . | . . . Allies Melted . | . . . Intel | -11 -10 -10 ------- Run | Yrd Mat Sub Robot Analysis Total . | . . . Derelict Logs Recovered . | . . . Drone Launches . | . . . Drone Recoveries . | . . . Exploration | -11 -10 -10 ------------- Run | Yrd Mat Sub Turns Passed 1989 | . 288 1701 Spaces Moved 1208 | 1 172 1035 Core 220 | . . 220 Treads 985 | . 170 815 Legs 3 | 1 2 . Wheels . | . . . Hover . | . . . Flight . | . . . Fastest Speed 50 | 120 120 50 Average Speed 139 | 120 159 136 Slowest Speed 160 | 120 160 160 Overloaded Moves . | . . . Propulsion Burnouts . | . . . Robots Hopped . | . . . Cave-ins Triggered . | . . . Exploration Rate (%) 28 | 2 37 45 Regions Visited 2 Branch Regions 1 Pre-discovered Areas . | . . . Known Exits Taken . | . . . Unknown Exits Taken 2 | 1 1 . Scrap Searched 17 | . . 17 Spaces Dug . | . . . Terrain Destroyed 3 | . . 3 Melee . | . . . Projectile 3 | . . 3 AOE . | . . . Terrain Rammed . | . . . Walls Destroyed . | . . . Machines Disabled . | . . . Actions | -11 -10 -10 --------- Run | Yrd Mat Sub Total 1414 | . 180 1234 Wait 108 | . . 108 Move 1206 | . 171 1035 Hop . | . . . Pick Up 10 | . 2 8 Fast Attach 8 | . 1 7 Attach 1 | . . 1 Detach . | . . . Swap 9 | . 2 7 Drop 14 | . . 14 Fire 47 | . 2 45 Melee 9 | . . 9 Ram . | . . . Kick . | . . . Crush 2 | . 2 . Escape Stasis . | . . . Rewire . | . . . Trap . | . . . Miscellaneous . | . . . Route ------- -11/Scrapyard -10/Materials (discovered 3 exits: [*Mat] / [*Min] / [*Sub]) -10/Subcaves History --------- Turn | Location | Event 1 | -11/Scrapyard | Discovered new exit (range 0) 1 | -11/Scrapyard | Entered Materials 49 | -10/Materials | Discovered new exit (range 16) 89 | -10/Materials | Discovered new exit (range 16) 257 | -10/Materials | Discovered new exit (range 15) 289 | -10/Materials | Entered Subcaves 309 | -10/Subcaves | Build established: Mutant 482 | -10/Subcaves | Shifting Twisted Machinery released Sub. Shrapnel Launcher 611 | -10/Subcaves | Shifting Twisted Machinery released Spk. Treads 662 | -10/Subcaves | Shifting Twisted Machinery released Flamer 664 | -10/Subcaves | Shifting Twisted Machinery released Flamer 1240 | -10/Subcaves | A Subdweller sparked back to life 1240 | -10/Subcaves | A Subdweller sparked back to life 1240 | -10/Subcaves | A Subdweller sparked back to life 1301 | -10/Subcaves | Found Prototype Flight Unit 1536 | -10/Subcaves | Disturbed a concealed Subdweller 1582 | -10/Subcaves | Disturbed a concealed Subdweller 1655 | -10/Subcaves | Shifting Twisted Machinery released Riot Gun 1827 | -10/Subcaves | Core integrity fell below 50% 1828 | -10/Subcaves | Ambushed by Subdweller buried in earth 1829 | -10/Subcaves | Released all parts (6) 1833 | -10/Subcaves | Core integrity fell below 20% 1981 | -10/Subcaves | Disturbed a concealed Subdweller 1990 | -10/Subcaves | Destroyed by VI-YXR(R) with Subdweller Beam Cannon Last Messages --------------- 01959_ Found Mak. Spear. 01959_ Found 28 Matter. 01960_ Acquired 10 matter. 01960_ Searching scrap... 01960_ Found Ripper. 01960_ Found Sub. Laser. 01960_ Found 23 Matter. 01964_ Acquired Mak. Spear. 01965_ Acquired 10 matter. 01967_ Searching scrap... 01967_ Found Flamer. 01967_ Found Battle Cannon. 01967_ Found 15 Matter. 01968_ Searching scrap... 01968_ Found Battle Rifle. 01968_ Found 12 Matter. 01975_ Acquired Mak. Light Armor Plating. 01976_ Acquired 10 matter. 01981_ VI-YXR(R) angrily emerges from the Twisted Machinery. 01989_ Mak. Spear follow-up attack on VI-YXR(R). Map ----- +----------------------------------------------------+ | ????????### ## ### | | ?????????# #" | | ?????????# # | | ?????????# # "# | | ????????## #"" # ## | | ????????# ###" # # #? | | ????????#" "## ## ##### #? | | ??????### ### ####???# ## | | ??????#" ###?# #?????## | | ??????#####???## #????## | | ???????????????####????# | | ?????????????????#####?## | | ????????????????## #??#### # | | ????????????????# #?????# ## | | ????????????????# ###?### ### | | ????????######??# !&! ### ## | | ??????###""<<#### =%& | | ?????##< < ###[## | | ?????# " " ## #### | | ????##< [= ## ##?# ## | | ????#< %& # ## ### | | ????#< [*%& ## ## ### ## | | ????#< |%]% ; #" ### ### | | ????#< [%#%[# ### ### | | ????#< /%%%!# ### ##?## | | ????#< @! # # ### ##???## | | ????##